fUST/lending_fUST_20260117
["ID","MTS","AMOUNT","RATE_DAILY","PERIOD"]
[402324407,1768659050431,-1240.14,0.00016438,3]
[402324409,1768659050441,-764.23,0.00016438,3]
[402324411,1768659050451,-646.22,0.00016438,3]
[402324413,1768659050461,-500.0,0.00016438,3]
[402324415,1768659050471,-500.0,0.00016438,3]
[402324417,1768659050481,-500.0,0.00016438,3]
[402324419,1768659050491,-500.0,0.00016438,3]
[402324421,1768659050501,-500.0,0.00016438,3]
[402324423,1768659050511,-500.0,0.00016438,3]
[402324425,1768659050521,-500.0,0.00016438,3]
[402324427,1768659050532,-500.0,0.00016438,3]
[402324455,1768659050761,-500.0,0.00016438,3]
[402324459,1768659050812,-1946.38,0.00016438,3]
[402324461,1768659050822,-500.0,0.00016438,3]
[402324463,1768659050831,-681.74,0.00016438,3]
[402324465,1768659050841,-500.0,0.00016438,3]
[402324467,1768659050854,-1174.25,0.00016438,3]
[402324469,1768659050863,-500.0,0.00016438,3]
[402324471,1768659050873,-1047.71,0.00016438,3]
[402324473,1768659050883,-500.0,0.00016438,3]
[402324475,1768659050895,-500.0,0.00016438,3]
[402324477,1768659050905,-500.0,0.00016438,3]
[402324479,1768659050916,-1121.76,0.00016438,3]
[402324482,1768659050926,-628.37,0.00016438,3]
[402324484,1768659050935,-500.0,0.00016438,3]
[402324486,1768659050945,-1173.68,0.00016438,3]
[402324488,1768659050954,-895.09,0.00016438,3]
[402324490,1768659050963,-1376.86,0.00016438,3]
[402324492,1768659050973,-500.0,0.00016438,3]
[402324494,1768659050982,-500.0,0.00016438,3]
[402324496,1768659050991,-512.63,0.00016438,3]
[402324497,1768659051000,-500.0,0.00016438,3]
[402324499,1768659051009,-500.0,0.00016438,3]
[402324501,1768659051018,-718.33,0.00016438,3]
[402324503,1768659051028,-763.87,0.00016438,3]
[402324505,1768659051038,-500.0,0.00016438,3]
[402324507,1768659051047,-500.0,0.00016438,3]
[402324509,1768659051056,-1290.77,0.00016438,3]
[402324511,1768659051065,-1726.7,0.00016438,3]
[402324513,1768659051075,-500.0,0.00016438,3]
[402324515,1768659051084,-500.0,0.00016438,3]
[402324517,1768659051093,-500.0,0.00016438,3]
[402324519,1768659051102,-887.81,0.00016438,3]
[402324521,1768659051113,-500.0,0.00016438,3]
[402324523,1768659051122,-500.0,0.00016438,3]
[402324525,1768659051132,-500.0,0.00016438,3]
[402324527,1768659051142,-500.0,0.00016438,3]
[402324529,1768659051151,-553.61,0.00016438,3]
[402324531,1768659051161,-1005.15,0.00016438,3]
[402324533,1768659051170,-500.0,0.00016438,3]
[402324535,1768659051179,-815.87,0.00016438,3]
[402324538,1768659051190,-500.0,0.00016438,3]
[402324540,1768659051200,-500.0,0.00016438,3]
[402324542,1768659051210,-822.47,0.00016438,3]
[402324544,1768659051220,-1463.58,0.00016438,3]
[402324545,1768659051229,-500.0,0.00016438,3]
[402324547,1768659051239,-500.0,0.00016438,3]
[402324549,1768659051249,-500.0,0.00016438,3]
[402324552,1768659051258,-501.16566781,0.00016438,3]
[402324553,1768659051267,-1000.0,0.00016438,2]
[402324555,1768659051278,-500.0,0.00016438,3]
[402324558,1768659051288,-500.0,0.00016438,3]
[402324559,1768659051298,-500.0,0.00016438,3]
[402324562,1768659051308,-500.0,0.00016438,3]
[402324564,1768659051318,-500.0,0.00016438,3]
[402324566,1768659051328,-500.0,0.00016438,3]
[402324568,1768659051338,-500.0,0.00016438,3]
[402324570,1768659051349,-796.2,0.00016438,3]
[402324571,1768659051358,-500.0,0.00016438,3]
[402324573,1768659051368,-500.0,0.00016438,3]
[402324576,1768659051378,-500.0,0.00016438,3]
[402324578,1768659051389,-500.0,0.00016438,3]
[402324580,1768659051398,-500.0,0.00016438,3]
[402324582,1768659051408,-679.44,0.00016438,3]
[402324584,1768659051418,-510.91,0.00016438,3]
[402324586,1768659051427,-500.0,0.00016438,3]
[402324588,1768659051437,-824.67,0.00016438,3]
[402324590,1768659051447,-683.59,0.00016438,3]
[402324592,1768659051456,-500.0,0.00016438,3]
[402324594,1768659051466,-500.0,0.00016438,3]
[402324596,1768659051476,-500.0,0.00016438,3]
[402324598,1768659051485,-500.0,0.00016438,3]
[402324600,1768659051494,-481.66318474,0.00016438,3]
[402324602,1768659051503,-500.0,0.00016438,3]
[402324604,1768659051512,-1224.64,0.00016438,3]
[402324606,1768659051521,-500.64667728,0.00016438,3]
[402324608,1768659051530,-877.29,0.00016438,3]
[402324609,1768659051540,-1471.77,0.00016438,3]
[402324611,1768659051549,-1469.24,0.00016438,3]
[402324613,1768659051560,-500.0,0.00016438,3]
[402324615,1768659051569,-626.27,0.00016438,3]
[402324617,1768659051578,-1013.32,0.00016438,3]
[402324619,1768659051588,-567.29,0.00016438,3]
[402324621,1768659051597,-500.0,0.00016438,3]
[402324623,1768659051606,-708.52,0.00016438,3]
[402324625,1768659051615,-588.8,0.00016438,3]
[402324627,1768659051623,-965.65,0.00016438,3]
[402324629,1768659051632,-500.0,0.00016438,3]
[402324631,1768659051642,-799.45,0.00016438,3]
[402324633,1768659051651,-500.0,0.00016438,3]
[402324635,1768659051660,-664.21,0.00016438,3]
[402324637,1768659051670,-500.0,0.00016438,3]
[402324639,1768659051680,-500.0,0.00016438,3]
[402324641,1768659051689,-500.0,0.00016438,3]
[402324643,1768659051699,-500.0,0.00016438,3]
[402324645,1768659051708,-500.0,0.00016438,3]
[402324647,1768659051717,-500.0,0.00016438,3]
[402324650,1768659051727,-500.0,0.00016438,3]
[402324651,1768659051736,-561.86,0.00016438,3]
[402324653,1768659051745,-500.0,0.00016438,3]
[402324656,1768659051754,-500.0,0.00016438,3]
[402324657,1768659051764,-500.0,0.00016438,3]
[402324660,1768659051774,-962.54,0.00016438,3]
[402324661,1768659051783,-500.0,0.00016438,3]
[402324663,1768659051792,-500.0,0.00016438,3]
[402324666,1768659051802,-500.0,0.00016438,3]
[402324668,1768659051811,-1710.54,0.00016438,3]
[402324670,1768659051821,-523.99827377,0.00016438,3]
[402324672,1768659051831,-1032.59,0.00016438,3]
[402324674,1768659051840,-500.0,0.00016438,3]
[402324676,1768659051853,-500.0,0.00016438,3]
[402324678,1768659051862,-1392.68,0.00016438,3]
[402324680,1768659051871,-500.07551483,0.00016438,3]
[402324682,1768659051881,-500.0,0.00016438,3]
[402324684,1768659051892,-500.0,0.00016438,3]
[402324686,1768659051901,-500.0,0.00016438,3]
[402324687,1768659051911,-1703.95,0.00016438,3]
[402324689,1768659051921,-500.0,0.00016438,3]
[402324691,1768659051930,-500.0,0.00016438,3]
[402324693,1768659051940,-500.0,0.00016438,3]
[402324696,1768659051949,-500.0,0.00016438,3]
[402324697,1768659051959,-627.21,0.00016438,3]
[402324699,1768659051968,-500.0,0.00016438,3]
[402324701,1768659051977,-1013.83,0.00016438,3]
[402324703,1768659051986,-575.03,0.00016438,3]
[402324705,1768659051994,-1127.64,0.00016438,3]
[402324707,1768659052004,-281.96847602,0.00016438,3]
[402324709,1768659052013,-500.0,0.00016438,3]
[402324711,1768659052022,-500.0,0.00016438,3]
[402324713,1768659052031,-500.0,0.00016438,3]
[402324715,1768659052040,-1930.5,0.00016438,3]
[402324717,1768659052049,-500.0,0.00016438,3]
[402324719,1768659052059,-2381.04,0.00016438,3]
[402324721,1768659052068,-500.0,0.00016438,3]
[402324723,1768659052077,-500.0,0.00016438,3]
[402324725,1768659052086,-500.0,0.00016438,3]
[402324727,1768659052095,-211.62283602,0.00016438,3]
[402324729,1768659052105,-500.0,0.00016438,3]
[402324731,1768659052114,-500.0,0.00016438,3]
[402324733,1768659052124,-1952.14,0.00016438,3]
[402324735,1768659052133,-500.0,0.00016438,3]
[402324737,1768659052142,-500.0,0.00016438,3]
[402324739,1768659052152,-500.0,0.00016438,3]
[402324741,1768659052162,-500.0,0.00016438,3]
[402324743,1768659052171,-1217.45,0.00016438,3]
[402324745,1768659052181,-540.01468021,0.00016438,3]
[402324747,1768659052191,-500.0,0.00016438,3]
[402324749,1768659052201,-500.0,0.00016438,3]
[402324751,1768659052211,-500.0,0.00016438,3]
[402324753,1768659052220,-500.0,0.00016438,3]
[402324755,1768659052230,-1199.47,0.00016438,3]
[402324757,1768659052239,-500.0,0.00016438,3]
[402324759,1768659052249,-207.01,0.00016438,2]
[402324761,1768659052258,-500.0,0.00016438,3]
[402324763,1768659052267,-876.92,0.00016438,3]
[402324765,1768659052276,-500.0,0.00016438,2]
[402324767,1768659052286,-500.0,0.00016438,3]
[402324769,1768659052297,-500.0,0.00016438,3]
[402324771,1768659052307,-574.1,0.00016438,3]
[402324773,1768659052316,-502.95,0.00016438,3]
[402324775,1768659052325,-500.0,0.00016438,3]
[402324777,1768659052335,-500.0,0.00016438,3]
[402324779,1768659052345,-500.0,0.00016438,3]
[402324781,1768659052354,-500.0,0.00016438,3]
[402324783,1768659052364,-500.0,0.00016438,3]
[402324785,1768659052372,-500.0,0.00016438,3]
[402324787,1768659052382,-500.0,0.00016438,3]
[402324789,1768659052391,-499.59360928,0.00016438,3]
[402324791,1768659052401,-500.0,0.00016438,3]
[402324793,1768659052411,-500.0,0.00016438,3]
[402324795,1768659052420,-500.0,0.00016438,3]
[402324797,1768659052430,-538.51,0.00016438,3]
[402324799,1768659052440,-532.55606123,0.00016438,3]
[402324801,1768659052449,-1407.02,0.00016438,3]
[402324803,1768659052459,-500.0,0.00016438,3]
[402324804,1768659052468,-500.0,0.00016438,3]
[402324805,1768659052478,-500.0,0.00016438,3]
[402324806,1768659052487,-500.0,0.00016438,3]
[402324807,1768659052497,-500.0,0.00016438,3]
[402324808,1768659052507,-500.0,0.00016438,3]
[402324809,1768659052517,-500.0,0.00016438,3]
[402324810,1768659052526,-500.0,0.00016438,3]
[402324811,1768659052536,-1435.89,0.00016438,3]
[402324812,1768659052546,-500.0,0.00016438,3]
[402324813,1768659052555,-500.0,0.00016438,3]
[402324814,1768659052565,-768.41,0.00016438,3]
[402324815,1768659052574,-500.0,0.00016438,3]
[402324816,1768659052584,-500.0,0.00016438,3]
[402324817,1768659052596,-500.0,0.00016438,3]
[402324818,1768659052606,-500.0,0.00016438,3]
[402324819,1768659052615,-500.0,0.00016438,3]
[402324820,1768659052625,-500.0,0.00016438,3]
[402324821,1768659052635,-500.0,0.00016438,3]
[402324822,1768659052645,-596.93,0.00016438,3]
[402324823,1768659052655,-500.0,0.00016438,3]
[402324824,1768659052665,-500.0,0.00016438,3]
[402324825,1768659052675,-500.0,0.00016438,3]
[402324826,1768659052684,-500.0,0.00016438,3]
[402324827,1768659052694,-743.89,0.00016438,3]
[402324828,1768659052704,-500.0,0.00016438,3]
[402324829,1768659052714,-1553.75,0.00016438,3]
[402324830,1768659052723,-500.0,0.00016438,3]
[402324831,1768659052733,-526.3812206,0.00016438,3]
[402324832,1768659052743,-500.0,0.00016438,3]
[402324833,1768659052751,-500.0,0.00016438,3]
[402324835,1768659052761,-500.0,0.00016438,3]
[402324837,1768659052771,-533.67555497,0.00016438,3]
[402324839,1768659052780,-807.81,0.00016438,3]
[402324841,1768659052790,-500.0,0.00016438,3]
[402324843,1768659052799,-500.0,0.00016438,3]
[402324845,1768659052809,-500.0,0.00016438,3]
[402324847,1768659052819,-1798.52,0.00016438,3]
[402324849,1768659052828,-2617.38,0.00016438,3]
[402324851,1768659052838,-1531.88,0.00016438,3]
[402324853,1768659052848,-500.0,0.00016438,3]
[402324855,1768659052861,-500.0,0.00016438,3]
[402324857,1768659052870,-1265.74,0.00016438,3]
[402324859,1768659052880,-859.86,0.00016438,3]
[402324861,1768659052891,-500.0,0.00016438,3]
[402324863,1768659052900,-500.0,0.00016438,3]
[402324865,1768659052910,-500.0,0.00016438,3]
[402324867,1768659052920,-500.0,0.00016438,3]
[402324869,1768659052930,-2068.32,0.00016438,3]
[402324872,1768659052940,-500.0,0.00016438,3]
[402324874,1768659052951,-500.0,0.00016438,3]
[402324875,1768659052961,-826.35,0.00016438,3]
[402324877,1768659052971,-878.9,0.00016438,3]
[402324880,1768659052982,-500.0,0.00016438,3]
[402324882,1768659052991,-500.0,0.00016438,3]
[402324884,1768659053000,-500.0,0.00016438,3]
[402324886,1768659053009,-501.29993361,0.00016438,3]
[402324888,1768659053019,-500.0,0.00016438,3]
[402324889,1768659053028,-500.0,0.00016438,3]
[402324892,1768659053039,-500.0,0.00016438,3]
[402324893,1768659053048,-753.78,0.00016438,3]
[402324896,1768659053058,-500.0,0.00016438,3]
[402324898,1768659053068,-665.06,0.00016438,3]
[402324900,1768659053078,-1665.15,0.00016438,3]
[402324909,1768659053088,-172.631544,0.00016438,3]
[402324912,1768659053173,-500.0,0.00016438,3]
[402324913,1768659053182,-500.0,0.00016438,3]
[402324915,1768659053192,-618.02349392,0.00016438,3]
[402324917,1768659053201,-500.0,0.00016438,3]
[402324920,1768659053212,-500.0,0.00016438,3]
[402324921,1768659053221,-598.07,0.00016438,3]
[402324924,1768659053232,-158.856128,0.00016438,3]
[402324925,1768659053241,-749.97,0.00016438,3]
[402324927,1768659053251,-624.25,0.00016438,3]
[402324929,1768659053261,-500.0,0.00016438,3]
[402324931,1768659053270,-642.78,0.00016438,3]
[402324934,1768659053280,-500.0,0.00016438,3]
[402324936,1768659053291,-500.0,0.00016438,3]
[402324938,1768659053300,-236.2,0.00016438,2]
[402324939,1768659053310,-500.0,0.00016438,3]
[402324942,1768659053320,-500.0,0.00016438,3]
[402324944,1768659053330,-500.0,0.00016438,3]
[402324945,1768659053339,-761.09,0.00016438,3]
[402324947,1768659053348,-500.0,0.00016438,3]
[402324949,1768659053358,-1622.42,0.00016438,3]
[402324951,1768659053368,-500.0,0.00016438,3]
[402324953,1768659053377,-500.0,0.00016438,3]
[402324955,1768659053387,-1425.42,0.00016438,3]
[402324957,1768659053398,-500.0,0.00016438,3]
[402324959,1768659053408,-1097.29,0.00016438,3]
[402324961,1768659053421,-500.0,0.00016438,3]
[402324963,1768659053429,-1547.34,0.00016438,3]
[402324965,1768659053439,-500.0,0.00016438,3]
[402324967,1768659053448,-500.0,0.00016438,3]
[402324969,1768659053457,-500.0,0.00016438,3]
[402324971,1768659053466,-500.0,0.00016438,3]
[402324973,1768659053475,-2020.66,0.00016438,3]
[402324975,1768659053485,-1837.73,0.00016438,3]
[402324977,1768659053494,-500.0,0.00016438,3]
[402324979,1768659053503,-14920.45,0.00016438,3]
[402324981,1768659053513,-520.01,0.00016438,3]
[402324983,1768659053522,-705.67,0.00016438,3]
[402324985,1768659053531,-500.0,0.00016438,3]
[402324987,1768659053540,-501.22117515,0.00016438,3]
[402324989,1768659053549,-500.0,0.00016438,3]
[402324991,1768659053558,-1401.0,0.00016438,3]
[402324993,1768659053567,-1215.91,0.00016438,3]
[402324995,1768659053576,-844.98,0.00016438,3]
[402324997,1768659053587,-500.0,0.00016438,3]
[402324999,1768659053596,-500.0,0.00016438,3]
[402325000,1768659053605,-1652.42,0.00016438,3]
[402325002,1768659053615,-500.0,0.00016438,3]
[402325004,1768659053624,-500.0,0.00016438,3]
[402325006,1768659053634,-500.0,0.00016438,3]
[402325008,1768659053643,-1253.25,0.00016438,3]
[402325010,1768659053652,-500.0,0.00016438,3]
[402325012,1768659053661,-500.0,0.00016438,3]
[402325014,1768659053670,-500.0,0.00016438,3]
[402325016,1768659053679,-500.0,0.00016438,3]
[402325018,1768659053688,-3641.66,0.00016438,3]
[402325020,1768659053698,-500.0,0.00016438,3]
[402325023,1768659053708,-1451.63,0.00016438,3]
[402325024,1768659053717,-500.0,0.00016438,3]
[402325026,1768659053726,-1509.95,0.00016438,3]
[402325028,1768659053736,-500.0,0.00016438,3]
[402325030,1768659053746,-500.0,0.00016438,3]
[402325032,1768659053755,-500.0,0.00016438,3]
[402325034,1768659053764,-760.68,0.00016438,3]
[402325036,1768659053774,-957.46,0.00016438,3]
[402325038,1768659053784,-1880.31,0.00016438,3]
[402325040,1768659053793,-757.84,0.00016438,3]
[402325042,1768659053802,-479.17924292,0.00016438,2]
[402325044,1768659053811,-500.0,0.00016438,3]
[402325046,1768659053820,-707.11,0.00016438,3]
[402325048,1768659053830,-444.83809808,0.00016438,3]
[402325050,1768659053840,-500.0,0.00016438,3]
[402325052,1768659053855,-500.0,0.00016438,3]
[402325054,1768659053864,-700.32,0.00016438,3]
[402325056,1768659053874,-500.0,0.00016438,3]
[402325058,1768659053883,-500.0,0.00016438,3]
[402325060,1768659053894,-500.0,0.00016438,3]
[402325062,1768659053903,-698.65,0.00016438,3]
[402325064,1768659053912,-522.78394003,0.00016438,3]
[402325066,1768659053922,-2050.27,0.00016438,3]
[402325068,1768659053931,-500.0,0.00016438,3]
[402325070,1768659053941,-500.0,0.00016438,3]
[402325072,1768659053951,-542.85,0.00016438,3]
[402325074,1768659053960,-1102.58,0.00016438,3]
[402325076,1768659053969,-500.0,0.00016438,3]
[402325078,1768659053979,-1467.06,0.00016438,3]
[402325080,1768659053988,-500.0,0.00016438,3]
[402325082,1768659053997,-500.0,0.00016438,3]
[402325084,1768659054006,-500.0,0.00016438,3]
[402325086,1768659054016,-1412.19,0.00016438,3]
[402325088,1768659054025,-699.55,0.00016438,3]
[402325090,1768659054035,-500.0,0.00016438,3]
[402325092,1768659054044,-500.0,0.00016438,3]
[402325094,1768659054053,-500.0,0.00016438,3]
[402325096,1768659054062,-309.96810054,0.00016438,3]
[402325098,1768659054071,-500.0,0.00016438,3]
[402325100,1768659054080,-500.0,0.00016438,3]
[402325102,1768659054089,-500.0,0.00016438,3]
[402325103,1768659054098,-500.0,0.00016438,3]
[402325106,1768659054107,-500.0,0.00016438,3]
[402325108,1768659054117,-500.0,0.00016438,3]
[402325109,1768659054126,-423.66716387,0.00016438,3]
[402325111,1768659054135,-500.0,0.00016438,3]
[402325113,1768659054145,-1428.69,0.00016438,3]
[402325115,1768659054154,-722.95,0.00016438,3]
[402325117,1768659054163,-500.0,0.00016438,3]
[402325119,1768659054172,-1662.79,0.00016438,3]
[402325121,1768659054181,-500.0,0.00016438,3]
[402325123,1768659054190,-500.0,0.00016438,3]
[402325125,1768659054199,-1044.14,0.00016438,3]
[402325127,1768659054208,-500.0,0.00016438,3]
[402325129,1768659054217,-607.6,0.00016438,3]
[402325131,1768659054226,-1456.0,0.00016438,3]
[402325133,1768659054235,-500.0,0.00016438,3]
[402325135,1768659054244,-500.0,0.00016438,3]
[402325136,1768659054253,-913.11,0.00016438,3]
[402325139,1768659054263,-500.0,0.00016438,3]
[402325140,1768659054272,-568.79,0.00016438,3]
[402325143,1768659054282,-500.0,0.00016438,3]
[402325144,1768659054291,-500.0,0.00016438,3]
[402325147,1768659054300,-561.39,0.00016438,3]
[402325148,1768659054310,-500.0,0.00016438,3]
[402325151,1768659054320,-531.99,0.00016438,3]
[402325153,1768659054330,-500.0,0.00016438,3]
[402325154,1768659054339,-500.0,0.00016438,3]
[402325156,1768659054349,-500.0,0.00016438,3]
[402325158,1768659054359,-500.0,0.00016438,3]
[402325161,1768659054368,-500.0,0.00016438,3]
[402325163,1768659054378,-632.04690666,0.00016438,3]
[402325164,1768659054387,-500.0,0.00016438,3]
[402325166,1768659054396,-1211.48,0.00016438,3]
[402325168,1768659054406,-1177.76,0.00016438,3]
[402325170,1768659054415,-500.0,0.00016438,3]
[402325172,1768659054425,-939.73,0.00016438,3]
[402325174,1768659054434,-670.95,0.00016438,3]
[402325176,1768659054443,-1326.69,0.00016438,3]
[402325178,1768659054453,-1081.34,0.00016438,3]
[402325180,1768659054462,-500.0,0.00016438,3]
[402325182,1768659054471,-512.41,0.00016438,3]
[402325184,1768659054480,-567.25,0.00016438,3]
[402325186,1768659054490,-1622.28,0.00016438,3]
[402325188,1768659054500,-1106.71,0.00016438,3]
[402325190,1768659054509,-500.0,0.00016438,3]
[402325192,1768659054519,-500.0,0.00016438,3]
[402325194,1768659054528,-597.09,0.00016438,3]
[402325196,1768659054537,-500.0,0.00016438,3]
[402325198,1768659054546,-500.0,0.00016438,3]
[402325200,1768659054556,-500.0,0.00016438,3]
[402325202,1768659054565,-500.0,0.00016438,3]
[402325204,1768659054574,-500.0,0.00016438,3]
[402325206,1768659054584,-1431.76,0.00016438,3]
[402325208,1768659054593,-500.0,0.00016438,3]
[402325210,1768659054602,-500.0,0.00016438,3]
[402325212,1768659054612,-500.0,0.00016438,3]
[402325214,1768659054621,-500.0,0.00016438,3]
[402325216,1768659054631,-501.51,0.00016438,3]
[402325218,1768659054640,-526.17897158,0.00016438,3]
[402325220,1768659054649,-610.02,0.00016438,3]
[402325222,1768659054658,-500.0,0.00016438,3]
[402325224,1768659054668,-1010.29,0.00016438,3]
[402325226,1768659054677,-500.0,0.00016438,3]
[402325228,1768659054686,-500.0,0.00016438,3]
[402325230,1768659054695,-609.3,0.00016438,3]
[402325232,1768659054704,-362.08497691,0.00016438,3]
[402325234,1768659054714,-2815.19,0.00016438,3]
[402325236,1768659054723,-647.23,0.00016438,3]
[402325238,1768659054733,-500.0,0.00016438,3]
[402325240,1768659054743,-500.0,0.00016438,3]
[402325242,1768659054751,-2008.11,0.00016438,3]
[402325244,1768659054761,-992.91,0.00016438,3]
[402325246,1768659054770,-500.0,0.00016438,3]
[402325248,1768659054779,-500.0,0.00016438,3]
[402325250,1768659054789,-500.0,0.00016438,3]
[402325252,1768659054798,-467.49360859,0.00016438,3]
[402325254,1768659054807,-500.0,0.00016438,3]
[402325256,1768659054817,-759.0,0.00016438,3]
[402325258,1768659054826,-557.01,0.00016438,3]
[402325260,1768659054834,-793.38,0.00016438,3]
[402325262,1768659054845,-561.04,0.00016438,3]
[402325264,1768659054856,-500.0,0.00016438,3]
[402325266,1768659054867,-500.0,0.00016438,3]
[402325267,1768659054876,-500.0,0.00016438,3]
[402325269,1768659054887,-500.0,0.00016438,3]
[402325271,1768659054897,-620.44,0.00016438,3]
[402325274,1768659054907,-599.93,0.00016438,3]
[402325276,1768659054917,-500.0,0.00016438,3]
[402325278,1768659054926,-500.0,0.00016438,3]
[402325280,1768659054936,-500.0,0.00016438,3]
[402325281,1768659054946,-500.0,0.00016438,3]
[402325284,1768659054955,-722.98,0.00016438,3]
[402325285,1768659054965,-500.0,0.00016438,3]
[402325287,1768659054974,-500.0,0.00016438,3]
[402325289,1768659054984,-500.0,0.00016438,2]
[402325291,1768659054992,-893.02,0.00016438,3]
[402325293,1768659055001,-945.42,0.00016438,3]
[402325295,1768659055011,-1045.03,0.00016438,3]
[402325297,1768659055020,-8441.37,0.00016438,3]
[402325299,1768659055029,-1046.6,0.00016438,3]
[402325301,1768659055039,-500.0,0.00016438,3]
[402325303,1768659055047,-645.09,0.00016438,3]
[402325305,1768659055056,-500.0,0.00016438,3]
[402325307,1768659055066,-500.0,0.00016438,3]
[402325309,1768659055075,-500.0,0.00016438,3]
[402325310,1768659055084,-500.0,0.00016438,3]
[402325311,1768659055093,-598.18,0.00016438,3]
[402325312,1768659055103,-500.0,0.00016438,3]
[402325313,1768659055112,-500.0,0.00016438,3]
[402325314,1768659055120,-500.0,0.00016438,3]
[402325315,1768659055129,-500.0,0.00016438,3]
[402325316,1768659055138,-500.0,0.00016438,3]
[402325317,1768659055147,-980.47,0.00016438,3]
[402325319,1768659055156,-1662.71,0.00016438,3]
[402325321,1768659055166,-500.0,0.00016438,3]
[402325323,1768659055175,-500.0,0.00016438,3]
[402325325,1768659055184,-500.0,0.00016438,3]
[402325327,1768659055194,-583.28,0.00016438,3]
[402325329,1768659055203,-500.0,0.00016438,3]
[402325331,1768659055212,-500.0,0.00016438,3]
[402325333,1768659055221,-916.68,0.00016438,3]
[402325335,1768659055230,-500.0,0.00016438,3]
[402325337,1768659055240,-500.0,0.00016438,3]
[402325339,1768659055249,-1239.92,0.00016438,3]
[402325341,1768659055258,-500.0,0.00016438,3]
[402325343,1768659055267,-959.49,0.00016438,3]
[402325344,1768659055276,-1628.03,0.00016438,3]
[402325346,1768659055285,-1330.27,0.00016438,3]
[402325348,1768659055295,-645.96,0.00016438,3]
[402325351,1768659055304,-500.0,0.00016438,3]
[402325352,1768659055313,-500.0,0.00016438,3]
[402325355,1768659055323,-500.0,0.00016438,3]
[402325356,1768659055332,-500.0,0.00016438,3]
[402325358,1768659055341,-500.0,0.00016438,3]
[402325361,1768659055351,-598.89865208,0.00016438,3]
[402325362,1768659055360,-1605.91,0.00016438,3]
[402325365,1768659055369,-2039.45,0.00016438,3]
[402325366,1768659055378,-500.0,0.00016438,3]
[402325369,1768659055387,-500.0,0.00016438,3]
[402325370,1768659055396,-1033.72,0.00016438,3]
[402325372,1768659055405,-782.18,0.00016438,3]
[402325374,1768659055414,-500.0,0.00016438,3]
[402325377,1768659055424,-784.27,0.00016438,3]
[402325378,1768659055433,-500.0,0.00016438,3]
[402325381,1768659055443,-500.0,0.00016438,3]
[402325382,1768659055453,-1140.99,0.00016438,3]
[402325385,1768659055462,-500.0,0.00016438,3]
[402325387,1768659055472,-791.1,0.00016438,3]
[402325389,1768659055481,-500.0,0.00016438,3]
[402325391,1768659055491,-500.0,0.00016438,3]
[402325393,1768659055500,-500.0,0.00016438,3]
[402325395,1768659055509,-3211.22,0.00016438,3]
[402325397,1768659055519,-795.5,0.00016438,3]
[402325399,1768659055528,-500.0,0.00016438,3]